bitfinex/quotes_ETHUSD_20241009
["timestamp","ask_amount","ask_price","bid_price","bid_amount"]
[1728512418788,1.83833592,2375.6,2375.3,4.20996]
[1728512419231,1.83833592,2375.6,2375.2,4.21008]
[1728512419400,1.83833592,2375.6,2375.2,8.42014]
[1728512419607,1.83833592,2375.6,2375.2,4.21007]
[1728512420439,4.99703,2375.7,2375.2,4.21007]
[1728512420636,6.3162772,2375.7,2375.1,4.21033]
[1728512420806,6.3162772,2375.7,2375.2,4.21013]
[1728512421955,3.98640203,2375.4,2374.9,7.21062]
[1728512422138,3.98640203,2375.4,2374.9,4.21062]
[1728512422139,0.7749,2375.3,2374.9,4.21062]
[1728512422288,0.7749,2375.3,2374.7,8.79407122]
[1728512422289,3.98640203,2375.2,2374.7,4.21093]
[1728512422489,0.7749,2375.1,2374.8,4.21076]
[1728512422789,0.7749,2375.1,2374.7,4.21093]
[1728512423226,4.98538,2375.1,2374.5,4.21128]
[1728512423525,0.7749,2375.1,2374.7,4.21095]
[1728512423728,0.7749,2375.1,2374.6,4.21107]
[1728512423900,0.7749,2375.1,2374.8,4.21085]
[1728512424332,0.7749,2375.1,2374.8,4.21078]
[1728512424693,0.7749,2375.1,2374.8,0.842188]
[1728512424892,0.7998,2375.6,2375.2,4.21016]
[1728512425198,0.7998,2375.6,2375.2,4.21008]
[1728512426019,0.7998,2375.6,2375.0,4.21038]
[1728512426020,0.7998,2375.6,2374.9,4.58314122]
[1728512426227,0.7998,2375.6,2375.4,4.20978]
[1728512426431,0.7998,2375.6,2375.3,4.20999]
[1728512427425,1.300696,2375.6,2375.2,4.21005]
[1728512428743,5.510156,2375.6,2375.2,4.21005]
[1728512429607,13.70618803,2375.6,2375.0,8.42079]
[1728512429955,5.510156,2375.6,2375.1,4.21033]
[1728512430603,9.719786,2375.6,2375.1,4.21033]
[1728512430836,0.9719786,2375.5,2375.1,4.21033]
[1728512431350,5.1816186,2375.5,2375.1,4.21033]
[1728512431717,0.8051,2375.4,2375.1,4.21033]
[1728512433647,0.8051,2375.4,2375.2,4.21016]
[1728512435347,0.8051,2375.4,2375.3,4.20999]
[1728512435505,0.7699,2375.6,2375.3,4.20999]
[1728512438860,0.7699,2375.6,2375.4,4.20968]
[1728512441226,0.7699,2375.6,2375.3,8.41988]
[1728512442560,0.7699,2375.6,2375.3,4.20989]
[1728512443557,0.7699,2375.6,2375.3,8.4198]
[1728512444460,0.7699,2375.6,2375.4,4.20981]
[1728512444887,0.7699,2375.6,2375.3,4.20989]
[1728512445584,5.01471,2375.8,2375.4,4.20973]
[1728512446779,6.3357122,2375.8,2375.4,4.20973]
[1728512446991,5.01523,2375.6,2375.1,4.21034]
[1728512447162,4.20976,2375.5,2375.0,7.21042]
[1728512447544,5.01567,2375.3,2374.8,4.42660717]
[1728512447870,1.728148,2375.3,2374.9,4.21068]
[1728512448686,1.728148,2375.3,2375.0,4.21041]
[1728512448889,0.8056,2375.3,2375.0,4.21041]
[1728512452054,0.8056,2375.3,2374.9,4.21067]
[1728512452254,5.01567,2375.3,2374.9,4.21067]
[1728512453691,0.8056,2375.3,2374.9,4.2106]
[1728512454787,0.8238,2375.2,2374.9,4.2106]
[1728512455370,2.6642464,2375.2,2374.9,4.2106]
[1728512456058,0.8238,2375.2,2374.9,4.2106]
[1728512457490,6.8744364,2375.2,2374.8,4.21086]
[1728512457803,7.98288904,2375.2,2374.8,4.21086]
[1728512458316,4.21036,2375.1,2374.7,4.21103]
[1728512458671,1.8404464,2374.8,2374.6,3.0]
[1728512458877,1.8404464,2374.8,2374.5,4.2113]
[1728512459293,1.8404464,2374.8,2374.6,4.21123]
[1728512459659,6.8484564,2375.0,2374.6,4.21123]
[1728512459861,8.0651833,2375.0,2374.6,4.21123]
[1728512460457,6.2247369,2375.0,2374.6,4.21123]
[1728512460658,2.0141269,2375.0,2374.7,4.21105]
[1728512460896,0.7974,2375.0,2374.7,4.21105]
[1728512461756,0.7974,2375.0,2374.6,4.2112]
[1728512461994,5.00794,2375.0,2374.6,4.2112]
[1728512462697,5.00794,2375.0,2374.3,4.21168]
[1728512462698,5.03155,2374.7,2374.3,4.21168]
[1728512462856,0.8205,2374.7,2374.3,4.21165]
[1728512463557,0.8205,2374.7,2374.4,4.21156]
[1728512464285,0.7629,2374.9,2374.6,4.2112]
[1728512464485,0.7629,2374.9,2374.4,0.924759]
[1728512464486,4.97369,2374.9,2374.4,4.21148]
[1728512465159,9.18448,2374.9,2374.4,4.21148]
[1728512465479,4.97369,2374.9,2374.4,4.21148]
[1728512467300,4.97369,2374.9,2374.4,4.21149]
[1728512467498,4.97368,2374.9,2374.4,4.21149]
[1728512467997,0.7629,2374.9,2374.7,4.21105]
[1728512468295,0.7629,2374.9,2374.6,4.21123]
[1728512470770,0.7629,2374.9,2374.6,4.2112]
[1728512473588,0.7629,2374.9,2374.7,4.21101]
[1728512474305,0.7621,2375.1,2374.8,4.21075]
[1728512474644,0.7621,2375.1,2374.6,4.21118]
[1728512474645,4.97252,2375.1,2374.6,4.21118]
[1728512475384,9.18299,2375.1,2374.6,4.21118]
[1728512475584,4.97252,2375.1,2374.6,4.21118]
[1728512476305,6.28967691,2375.1,2374.6,4.21118]
[1728512477119,6.28967691,2375.1,2374.2,7.21184]
[1728512477120,4.21113,2374.7,2374.3,4.21175]
[1728512477269,4.21113,2374.7,2374.2,0.8241]
[1728512477270,4.21113,2374.7,2374.2,5.03595]
[1728512478008,4.21113,2374.7,2374.3,4.21175]
[1728512479306,4.21113,2374.7,2374.2,8.03604]
[1728512479615,4.21113,2374.7,2374.3,4.21175]
[1728512479912,0.8304,2374.6,2374.2,7.21194]
[1728512480114,0.8304,2374.6,2374.2,11.42379]
[1728512480272,5.04165,2374.6,2374.1,4.21211]
[1728512480472,4.98927,2374.4,2373.9,8.42483]
[1728512480710,1.84177421,2374.3,2374.0,4.21214]
[1728512481180,2.52485263,2374.3,2373.9,4.21238]
[1728512481389,0.68307842,2374.3,2374.0,4.21222]
[1728512482091,0.7776,2374.4,2373.9,1.84177421]
[1728512482289,2.86089202,2375.2,2374.4,4.21156]
[1728512482290,0.8331,2374.6,2374.4,4.21156]
[1728512482622,0.8331,2374.6,2374.2,4.21177]
[1728512483601,5.04434,2374.6,2374.2,4.21177]
[1728512485721,0.8331,2374.6,2374.2,8.4236]
[1728512486022,0.8331,2374.6,2374.3,4.21166]
[1728512486318,0.8331,2374.6,2374.2,4.21177]
[1728512486825,5.02365,2374.8,2374.3,4.21175]
[1728512486988,10.81762442,2374.8,2374.3,4.21175]
[1728512487185,4.21106,2374.7,2374.3,4.21175]
[1728512487386,4.21106,2374.7,2374.2,4.21192]
[1728512488292,0.8126,2374.8,2374.3,4.2117]
[1728512488520,0.8126,2374.8,2374.4,4.21151]
[1728512489614,5.0235,2374.8,2374.4,4.21151]
[1728512490329,0.8126,2374.8,2374.4,4.21151]
[1728512491024,5.02351,2374.8,2374.3,8.42335]
[1728512491335,5.02351,2374.8,2374.4,4.21158]
[1728512491336,6.13111742,2374.8,2374.4,4.21158]
[1728512493031,1.92020742,2374.8,2374.4,4.21158]
[1728512493234,1.92020742,2374.8,2374.5,4.9861]
[1728512493535,0.8126,2374.8,2374.5,4.9861]
[1728512493904,0.8126,2374.8,2374.5,0.7747]
[1728512494110,1.84177421,2375.0,2374.6,4.21115]
[1728512494111,0.7687,2375.0,2374.6,4.21115]
[1728512494431,0.7687,2375.0,2374.6,8.42229]
[1728512495091,7.37152421,2375.2,2374.7,4.21105]
[1728512495297,3.09777842,2375.2,2374.8,4.21086]
[1728512495704,7.30803842,2375.2,2374.8,4.21086]
[1728512496527,4.21034,2375.1,2374.7,4.21104]
[1728512499312,4.21034,2375.1,2374.6,4.21122]
[1728512499313,8.42079,2375.1,2374.6,4.21122]
[1728512499723,4.21034,2375.1,2374.6,4.21122]
[1728512500035,5.12532926,2375.1,2374.6,8.42237]
[1728512500236,5.12532926,2375.1,2374.6,4.21115]
[1728512500532,4.21053,2375.0,2374.6,4.21111]
[1728512501535,4.21053,2375.0,2374.6,8.42226]
[1728512502005,4.21053,2375.0,2374.6,4.21111]
[1728512502206,4.21053,2375.0,2374.5,4.98603]
[1728512502207,4.21071,2374.9,2374.5,4.98603]
[1728512503641,0.7755,2375.0,2374.6,4.21119]
[1728512504009,4.98604,2375.0,2374.6,4.21119]
[1728512504213,4.98604,2375.0,2374.5,4.98603]
[1728512504534,4.98604,2375.0,2374.5,4.98602]
[1728512504697,4.709314,2374.9,2374.5,4.98602]
[1728512505328,4.709314,2374.9,2374.3,4.4257732]
[1728512505329,4.21098,2374.8,2374.4,3.0]
[1728512505535,4.21124,2374.6,2374.2,5.00804]
[1728512505966,4.21124,2374.6,2374.2,0.7962]
[1728512506242,0.755,2374.3,2373.9,4.21234]
[1728512506441,0.755,2374.3,2374.1,4.21211]
[1728512506610,0.755,2374.3,2374.0,4.21228]
[1728512508337,0.755,2374.3,2374.0,4.21229]
[1728512512037,0.755,2374.3,2374.1,4.21203]
[1728512512452,0.755,2374.3,2374.0,4.21229]
[1728512512674,0.755,2374.3,2374.0,8.42449]
[1728512512838,4.75315,2374.8,2374.4,4.21156]
[1728512513051,5.54795,2374.8,2374.4,8.42303]
[1728512513242,5.54795,2374.8,2374.5,4.21138]
[1728512514745,4.75315,2374.8,2374.7,4.21105]
[1728512514939,0.763,2375.0,2374.6,4.21122]
[1728512515868,5.891892,2375.0,2374.4,4.21148]
[1728512516080,4.2108,2374.9,2374.4,4.21148]
[1728512516290,4.2108,2374.9,2374.4,8.42299]
[1728512517247,5.891892,2375.0,2374.5,4.21132]
[1728512517893,4.21073,2374.9,2374.5,4.21132]
[1728512518051,4.97354,2375.0,2374.6,4.2112]
[1728512519185,0.763,2375.0,2374.6,4.2112]
[1728512520285,0.763,2375.0,2374.7,4.21093]
[1728512520462,0.763,2375.0,2374.8,4.2108]
[1728512520965,0.763,2375.0,2374.7,0.7691]
[1728512520966,0.763,2375.0,2374.7,4.98014]
[1728512521164,0.763,2375.0,2374.7,4.21104]
[1728512521992,0.8106,2374.4,2374.1,0.87666418]
[1728512522159,0.8106,2374.4,2373.8,0.87666418]
[1728512522160,0.502205,2374.3,2373.8,0.87666418]
[1728512522365,5.02219,2374.4,2373.8,0.87666418]
[1728512522567,5.02219,2374.4,2373.7,1.69546424]
[1728512522781,0.8106,2374.4,2373.7,1.69546424]
[1728512522993,4.21196,2374.2,2373.7,1.63226418]
[1728512523152,4.21196,2374.2,2373.7,1.7499433]
[1728512523614,4.21196,2374.2,2373.7,4.7499433]
[1728512524322,5.0223,2374.4,2373.7,4.7499433]
[1728512524477,5.0223,2374.4,2373.7,3.7556]
[1728512524989,4.21196,2374.2,2373.7,3.7556]
[1728512525389,0.7604,2374.0,2373.5,0.87666418]
[1728512525591,0.7604,2374.0,2373.2,3.43099491]
[1728512525592,4.21301,2373.6,2373.2,0.8044]
[1728512525809,0.7604,2373.5,2373.0,1.68106418]
[1728512525972,4.21362,2373.3,2372.8,1.80056028]
[1728512526178,4.21362,2373.3,2372.8,0.9238961]
[1728512526414,4.21336,2373.4,2372.8,0.9238961]
[1728512526920,4.21336,2373.4,2372.8,1.54618942]
[1728512527128,4.21358,2373.3,2372.8,0.9238961]
[1728512527319,4.21336,2373.4,2372.8,0.9238961]
[1728512527320,4.21373,2373.2,2372.8,0.9238961]
[1728512529192,4.75097303,2373.5,2372.8,0.1194961]
[1728512529398,9.02002303,2372.9,2372.8,0.1194961]
[1728512529805,5.02945,2372.9,2372.8,0.1194961]
[1728512530017,6.3528723,2372.9,2372.8,0.1194961]
[1728512531247,10.34344533,2372.9,2372.8,0.1194961]
[1728512533808,6.3528723,2372.9,2372.8,0.1194961]
[1728512534019,10.34344533,2372.9,2372.8,0.1194961]
[1728512534824,6.3528723,2372.9,2372.8,0.1194961]
[1728512536313,5.02945,2372.9,2372.8,0.1194961]
[1728512550189,4.21425,2372.9,2372.8,0.1194961]
[1728512552897,4.21425,2372.9,2372.8,0.9301961]
[1728512553472,4.75315,2373.1,2372.8,0.9301961]
[1728512553702,8.96706,2373.1,2372.8,0.9301961]
[1728512553901,8.96706,2373.1,2372.8,1.32321571]
[1728512554091,8.96706,2373.1,2372.8,0.9301961]
[1728512556413,4.75315,2373.1,2372.8,0.9301961]
[1728512556611,8.96714,2373.1,2372.8,0.9301961]
[1728512559087,4.21407,2373.0,2372.8,0.9301961]
[1728512568582,4.2139,2373.1,2372.8,0.9301961]
[1728512568798,4.2139,2373.1,2372.8,1.47466228]
[1728512569096,4.21408,2373.0,2372.8,0.9301961]
[1728512569791,4.2139,2373.1,2372.8,0.9301961]
[1728512569996,7.42,2373.5,2372.8,0.9301961]
[1728512569997,4.21425,2372.9,2372.8,0.9301961]
[1728512570228,4.21425,2372.9,2372.8,0.1194961]
[1728512570726,5.868884,2372.9,2372.8,0.1194961]
[1728512576035,4.21425,2372.9,2372.8,0.1194961]
[1728512576428,4.21386,2373.2,2372.8,0.1194961]
[1728512576429,4.21407,2373.0,2372.8,0.1194961]
[1728512576824,4.21425,2372.9,2372.8,0.1194961]
[1728512577148,8.42829,2373.0,2372.8,0.1194961]
[1728512577758,4.21425,2372.9,2372.8,0.1194961]
[1728512579440,5.057082,2372.9,2372.8,0.1194961]
[1728512579630,5.811282,2372.9,2372.8,0.1194961]
[1728512581442,4.21407,2373.0,2372.8,0.1194961]
[1728512581642,4.21425,2372.9,2372.8,0.1194961]
[1728512587406,4.97455,2372.9,2372.8,0.1194961]
[1728512588204,6.81839075,2372.9,2372.8,0.1194961]
[1728512590606,4.97455,2372.9,2372.8,0.1194961]
[1728512590782,6.29297951,2372.9,2372.8,0.1194961]
[1728512592706,4.21425,2372.9,2372.8,0.1194961]
[1728512605345,4.97415,2372.9,2372.8,0.1194961]
[1728512606448,8.96982511,2372.9,2372.8,0.1194961]
[1728512608551,4.97415,2372.9,2372.8,0.1194961]
[1728512608758,4.21425,2372.9,2372.8,0.1194961]
[1728512610088,5.53818951,2372.9,2372.8,0.1194961]
[1728512612444,7.38262129,2372.9,2372.8,0.1194961]
[1728512613650,8.19802129,2372.9,2372.8,0.1194961]
[1728512617215,29.44214963,2372.9,2372.8,0.1194961]
[1728512617400,29.44305794,2372.9,2372.8,0.1194961]
[1728512618002,29.44306285,2372.9,2372.8,0.1194961]
[1728512618190,26.79117129,2372.9,2372.8,0.1194961]
[1728512618513,29.44259484,2372.9,2372.8,0.1194961]
[1728512619622,29.44226568,2372.9,2372.8,0.1194961]
[1728512623290,29.44226568,2372.9,2371.8,0.7533]
[1728512623291,4.21576,2372.1,2371.8,0.7533]
[1728512624300,6.05998178,2372.2,2371.8,0.7533]
[1728512624301,4.21585,2372.0,2371.8,0.7533]
[1728512626809,4.21568,2372.1,2371.8,0.7533]
[1728512628293,4.21568,2372.1,2371.8,0.75248572]
[1728512632368,4.21585,2372.0,2371.8,0.75248572]
[1728512632691,4.21568,2372.1,2371.8,0.75248572]
[1728512636964,4.21585,2372.0,2371.8,0.75248572]
[1728512637288,4.21568,2372.1,2371.8,0.75248572]
[1728512640348,4.21587,2372.0,2371.8,0.75248572]
[1728512640551,4.21568,2372.1,2371.8,0.75248572]
[1728512648024,4.21543,2372.3,2371.8,2.12932841]
[1728512649237,4.21506,2372.5,2372.1,5.03302]
[1728512649909,8.96789,2372.7,2372.2,4.21546]
[1728512650109,13.18263,2372.7,2372.3,0.823]
[1728512650305,4.75315,2372.7,2372.3,5.963718]
[1728512651303,8.96777,2372.7,2372.3,1.748408]
[1728512651632,8.96777,2372.7,2372.3,0.823]
[1728512651938,13.18246,2372.7,2372.3,0.823]
[1728512652228,8.96777,2372.7,2372.3,0.823]
[1728512652707,8.96777,2372.7,2372.3,5.03831]
[1728512657009,8.96777,2372.7,2372.3,0.823]
[1728512657353,13.18252,2372.7,2372.3,0.823]
[1728512657639,4.2148,2372.6,2372.3,0.823]
[1728512657794,4.21506,2372.5,2372.2,3.21171077]
[1728512660227,0.973091,2372.5,2372.1,0.8084]
[1728512660453,4.2154,2372.3,2372.1,0.8084]
[1728512670448,4.21507,2372.5,2372.1,0.8084]
[1728512671040,4.21507,2372.5,2372.1,5.02405]
[1728512673417,8.43013,2372.5,2372.1,5.02405]
[1728512674256,4.21506,2372.5,2372.1,5.02405]
[1728512674559,8.43011,2372.5,2372.1,5.02405]
[1728512675337,5.533376,2372.5,2372.1,5.02405]
[1728512677528,9.748426,2372.5,2372.1,5.02405]
[1728512677862,5.533376,2372.5,2372.1,5.02405]
[1728512678544,8.4301,2372.5,2372.1,5.02405]
[1728512679250,4.21505,2372.5,2372.1,5.02405]
[1728512681363,8.43013,2372.5,2372.1,0.8084]
[1728512683973,4.21451,2372.8,2372.3,5.01034]
[1728512684141,4.21451,2372.8,2372.4,1.38885686]
[1728512684474,4.21451,2372.8,2372.4,0.87939258]
[1728512688069,4.21461,2372.7,2372.4,0.87939258]
[1728512688378,4.21461,2372.7,2372.4,0.7951]
[1728512690985,4.21432,2372.9,2372.4,5.01015]
[1728512692074,4.21432,2372.9,2372.5,0.0842897]
[1728512692379,8.42866,2372.9,2372.5,0.0842897]
[1728512694903,4.21432,2372.9,2372.4,5.01015]
[1728512695106,4.21447,2372.8,2372.4,5.01015]
[1728512696489,4.21447,2372.8,2372.4,5.22587077]
[1728512697007,4.21469,2372.7,2372.4,0.7951]
[1728512697175,4.21479,2372.6,2372.2,4.21541]
[1728512697521,4.21505,2372.5,2372.2,0.8023]
[1728512698185,4.21521,2372.4,2372.1,3.0]
[1728512698384,4.21558,2372.2,2371.9,1.09642702]
[1728512698603,8.4312,2372.2,2371.9,0.21312554]
[1728512698802,0.92248,2372.1,2371.9,0.21312554]
[1728512699113,0.92248,2372.1,2371.8,0.7964]
[1728512699918,4.21525,2372.4,2371.8,5.01258]
[1728512700089,4.21535,2372.3,2371.8,5.01258]
[1728512700612,4.21558,2372.2,2371.8,0.7964]
[1728512701184,4.21535,2372.3,2371.8,5.01258]
[1728512701507,8.43077,2372.3,2371.8,5.01258]
[1728512703218,4.21535,2372.3,2371.8,5.01258]
[1728512703373,8.43077,2372.3,2371.8,5.01258]
[1728512703584,4.21535,2372.3,2371.8,5.01258]
[1728512703920,4.21535,2372.3,2371.9,4.216]
[1728512704271,4.21535,2372.3,2371.8,5.01258]
[1728512704472,4.21549,2372.2,2371.8,5.01258]
[1728512705216,4.21535,2372.3,2372.0,0.7713]
[1728512705508,4.21551,2372.2,2372.0,0.7713]
[1728512705711,4.99099,2372.5,2372.0,0.7713]
[1728512706017,4.99099,2372.5,2372.1,0.08430437]
[1728512706946,4.21509,2372.5,2372.1,0.08430437]
[1728512707211,4.21514,2372.4,2372.1,0.08430437]
[1728512707412,4.21514,2372.4,2372.0,4.98706]
[1728512710483,4.21509,2372.5,2372.0,4.98706]
[1728512710689,4.21509,2372.5,2372.1,4.21566]
[1728512710890,4.99662,2372.7,2372.1,4.21566]
[1728512711118,4.99662,2372.7,2372.2,0.7987]
[1728512711119,0.7819,2372.7,2372.2,0.7987]
[1728512711328,4.75315,2373.0,2372.5,0.7987]
[1728512711497,4.21408,2373.0,2372.5,0.7987]
[1728512711926,4.21443,2372.8,2372.5,0.7987]
[1728512712155,0.807,2373.1,2372.5,5.936531]
[1728512712454,5.0209,2373.1,2372.6,4.21467]
[1728512712652,4.21407,2373.0,2372.6,4.21467]
[1728512713143,8.42772,2373.2,2372.7,5.00519]
[1728512713348,8.4277,2373.2,2372.7,5.00519]
[1728512713650,4.21385,2373.2,2372.7,5.0052]
[1728512713853,4.21385,2373.2,2372.7,6.47779122]
[1728512714056,8.42765,2373.2,2372.7,6.47779122]
[1728512714348,8.42766,2373.2,2372.7,6.47779122]
[1728512714650,4.2138,2373.2,2372.7,6.47779122]
[1728512716054,4.2141,2373.0,2372.7,0.7906]
[1728512716356,4.21433,2372.9,2372.6,3.0]
[1728512718626,4.96538,2373.0,2372.6,3.0]
[1728512719198,4.21426,2372.9,2372.6,3.0]
[1728512720302,4.96538,2373.0,2372.6,3.0]
[1728512720796,4.21426,2372.9,2372.6,3.0]
[1728512722672,9.17954,2373.0,2372.6,3.0]
[1728512724014,4.96538,2373.0,2372.6,3.0]
[1728512726019,4.96538,2373.0,2372.5,3.833]
[1728512726193,4.96538,2373.0,2372.6,4.21477]
[1728512726818,9.17958,2373.0,2372.5,8.87337414]
[1728512727002,4.21444,2372.8,2372.5,3.833]
[1728512727209,8.42899,2372.8,2372.4,3.0]
[1728512727529,4.21444,2372.8,2372.3,5.00409]
[1728512728211,8.42895,2372.8,2372.3,5.00409]
[1728512728416,4.21444,2372.8,2372.3,5.00409]
[1728512728786,8.42904,2372.8,2372.3,5.00409]
[1728512729192,4.21462,2372.7,2372.3,5.00409]
[1728512729920,5.03882,2372.7,2372.3,0.7888]
[1728512730126,4.21508,2372.5,2372.1,3.7989]
[1728512730511,4.21508,2372.5,2372.1,5.01457]
[1728512730684,4.21508,2372.5,2372.2,3.0]
[1728512732295,0.09435805,2372.4,2372.2,3.0]
[1728512734091,4.21488,2372.6,2372.2,3.0]
[1728512734301,0.09106931,2372.5,2372.2,8.10046418]
[1728512734487,5.03888,2372.7,2372.2,8.10046418]
[1728512734686,0.09106931,2372.6,2372.2,8.10046418]
[1728512735531,0.09106931,2372.6,2372.3,4.21531]
[1728512738219,0.09106931,2372.6,2372.5,0.8057]
[1728512738603,4.21434,2372.9,2372.5,0.8057]
[1728512739232,0.09109803,2372.8,2372.5,0.8057]
[1728512739439,0.09109803,2372.8,2372.5,5.95043187]
[1728512740244,0.09109803,2372.8,2372.6,4.21473]
[1728512740536,16.37337,2373.4,2373.0,4.21399]
[1728512740537,0.7885,2373.4,2373.0,4.21399]
[1728512740693,4.21294,2373.7,2373.0,4.21399]
[1728512740694,5.00156,2373.6,2373.1,5.0236]
[1728512740897,4.21321,2373.5,2373.1,0.8098]
[1728512741120,4.21321,2373.5,2373.1,0.89406916]
[1728512741893,4.21338,2373.4,2373.1,0.8098]
[1728512742602,4.21319,2373.5,2373.1,0.8098]
[1728512747233,4.21319,2373.5,2373.1,1.33296367]
[1728512750739,4.21338,2373.4,2373.1,1.33296367]
[1728512751036,4.21319,2373.5,2373.1,0.8098]
[1728512751037,4.21355,2373.3,2373.1,0.8098]
[1728512751832,4.21355,2373.3,2372.9,7.42209665]
[1728512751833,0.8139,2373.4,2372.9,4.01586665]
[1728512752049,0.8139,2373.4,2372.5,1.87577578]
[1728512752050,4.21415,2373.0,2372.7,0.808]
[1728512752333,4.21415,2373.0,2372.5,1.01379959]
[1728512752334,4.21453,2372.8,2372.5,1.01379959]
[1728512752537,4.21438,2372.9,2372.5,1.01379959]
[1728512753004,0.8139,2373.0,2372.5,0.808]
[1728512753201,0.8139,2373.0,2372.1,9.68136995]
[1728512753202,4.21478,2372.6,2372.3,0.808]
[1728512754009,4.21475,2372.7,2372.3,0.808]
[1728512754327,0.09179853,2372.6,2372.3,0.808]
[1728512754521,4.30657853,2372.6,2372.3,0.808]
[1728512754823,0.09179853,2372.6,2372.3,0.808]
[1728512758442,4.30657853,2372.6,2372.3,0.808]
[1728512758743,4.21499,2372.5,2372.1,5.6312816]
[1728512759044,4.21515,2372.4,2372.1,5.41544122]
[1728512759204,4.30642607,2372.4,2372.1,5.41544122]
[1728512759711,0.09127607,2372.4,2372.1,0.8323]
[1728512760041,0.8108,2372.6,2371.7,0.88269873]
[1728512760042,4.21565,2372.2,2371.9,0.8323]
[1728512760357,4.21565,2372.2,2371.9,3.8323]
[1728512760501,0.09127607,2372.1,2371.9,3.8323]
[1728512761502,4.30696607,2372.1,2371.9,0.8323]
[1728512761713,5.15922668,2372.1,2371.7,0.8323]
[1728512761935,4.30696607,2372.1,2371.7,0.8323]
[1728512762942,0.09127607,2372.1,2371.8,4.21618]
[1728512763110,0.09127607,2372.1,2371.7,9.26479]
[1728512763304,4.21603,2371.9,2371.6,3.21005211]
[1728512763506,4.21603,2371.9,2371.5,4.58314122]
[1728512763707,0.09105208,2371.8,2371.5,8.79971122]
[1728512763907,4.21587,2372.0,2371.5,8.79971122]
[1728512764191,0.09104633,2371.9,2371.5,8.79971122]
[1728512764352,0.09104633,2371.9,2371.5,9.0066194]
[1728512764940,0.09104633,2371.9,2371.6,4.21654]
[1728512765813,0.09104633,2371.9,2371.5,4.7900494]
[1728512766012,4.21693,2371.4,2371.2,0.7572]
[1728512766206,4.21693,2371.4,2371.0,0.7699]
[1728512766207,4.21719,2371.3,2371.0,0.7699]
[1728512766411,4.2173,2371.2,2371.0,0.7699]
[1728512766624,0.09056381,2371.2,2371.0,0.7699]
[1728512766911,4.97712,2371.4,2371.0,0.7699]
[1728512767140,0.09056381,2371.3,2371.0,0.7699]
[1728512767408,0.09056381,2371.3,2371.0,3.7699]
[1728512767827,0.7602,2371.4,2371.0,7.9875]
[1728512768045,4.97712,2371.4,2371.0,3.7699]
[1728512768287,4.30768381,2371.3,2371.0,3.0]
[1728512768572,4.21734,2371.2,2370.7,4.2181]
[1728512769191,4.2171,2371.3,2370.8,4.21794]
[1728512769352,5.136522,2371.3,2370.8,4.21794]
[1728512769565,0.09056381,2371.2,2370.8,4.21794]
[1728512769935,5.136522,2371.3,2370.8,4.21794]
[1728512770136,0.09056381,2371.2,2370.8,4.21794]
[1728512770493,4.21736,2371.2,2370.7,4.2181]
[1728512770632,0.09056381,2371.1,2370.8,4.21797]
[1728512771136,8.43428,2371.3,2370.8,4.21797]
[1728512771336,8.43435,2371.3,2370.8,4.21797]
[1728512771562,0.09056381,2371.2,2370.8,4.21797]
[1728512771835,0.09056381,2371.2,2370.7,4.2181]
[1728512772038,4.21731,2371.2,2370.7,8.43615]
[1728512772356,8.43436,2371.3,2370.8,4.21794]
[1728512772559,0.09056381,2371.2,2370.8,4.21794]
[1728512772744,8.43436,2371.3,2370.8,4.21794]
[1728512772950,0.09056381,2371.2,2370.8,4.21794]
[1728512773156,8.43436,2371.3,2370.8,4.21794]
[1728512773335,0.09056381,2371.2,2370.8,4.21794]
[1728512773541,8.43429,2371.3,2370.8,4.21794]
[1728512773751,0.09056381,2371.2,2370.8,4.21794]
[1728512774179,8.43429,2371.3,2370.8,4.21794]
[1728512774375,0.09056381,2371.1,2370.8,4.21794]
[1728512774553,8.43429,2371.3,2370.8,4.21794]
[1728512774872,0.09056381,2371.2,2370.8,4.21794]
[1728512775237,8.43429,2371.3,2370.8,4.21794]
[1728512775679,0.09056381,2371.2,2370.8,4.21794]
[1728512776108,4.21727,2371.2,2370.8,4.21794]
[1728512776262,0.09056381,2371.1,2370.8,4.21794]
[1728512777065,0.09056381,2371.0,2370.8,4.21794]
[1728512777295,0.09056381,2371.0,2370.8,5.62162174]
[1728512777490,4.2171,2371.3,2370.8,5.62162174]
[1728512777691,0.09056381,2370.9,2370.8,5.62162174]
[1728512778159,4.2171,2371.3,2370.8,5.62162174]
[1728512778361,0.09056381,2371.2,2370.8,4.21794]
[1728512778585,4.2171,2371.3,2370.8,4.21794]
[1728512778761,0.09056381,2371.1,2370.8,4.21794]
[1728512778961,8.43429,2371.3,2370.8,4.21794]
[1728512779163,0.09056381,2371.2,2370.8,4.21794]
[1728512779363,8.43429,2371.3,2370.8,4.21794]
[1728512779664,4.30788381,2371.2,2370.8,4.21794]
[1728512779864,4.21747,2371.1,2370.7,3.0]
[1728512780161,4.21764,2371.0,2370.7,3.0]
[1728512780388,0.90106381,2370.9,2370.7,3.0]
[1728512782983,4.21809,2370.8,2370.4,0.9314961]
[1728512783183,4.21801,2370.8,2370.4,3.1194961]
[1728512783388,0.08944299,2370.7,2370.4,3.1194961]
[1728512783557,1.02303129,2370.7,2370.4,0.1194961]
[1728512783760,4.21851,2370.5,2370.4,0.1194961]
[1728512783982,4.30794724,2370.5,2370.4,0.1194961]
[1728512785707,0.08943724,2370.5,2370.4,7.29153152]
[1728512785908,0.08943724,2370.5,2370.4,0.1194961]
[1728512786065,4.21819,2370.7,2370.4,0.1194961]
[1728512786410,4.21842,2370.6,2370.4,0.1194961]
[1728512786609,0.08912664,2370.6,2370.4,0.1194961]
[1728512787096,4.21837,2370.6,2370.4,0.1194961]
[1728512787299,0.08912664,2370.5,2370.4,0.1194961]
[1728512788363,0.88742664,2370.5,2370.4,0.1194961]
[1728512788996,1.3980063,2370.5,2370.4,0.1194961]